bitfinex-derivatives/quotes_ETHF0:USTF0_20210702
["timestamp","ask_amount","ask_price","bid_price","bid_amount"]
[1625232472761,2.20527,2057.5,2057.4,2.20527]
[1625232472862,3.20527,2057.5,2057.4,2.20527]
[1625232473316,2.20527,2057.5,2057.4,2.20527]
[1625232473715,1.0,2057.9,2057.4,2.20527]
[1625232474718,1.0,2057.9,2057.8,2.20527]
[1625232474867,2.20527,2058.0,2057.8,2.20527]
[1625232474970,3.20527,2058.0,2057.8,2.20527]
[1625232478329,1.0,2058.0,2057.8,2.20527]
[1625232478429,1.0,2058.1,2057.8,2.20527]
[1625232479730,44.2317,2057.9,2057.8,2.20527]
[1625232479830,45.2317,2057.9,2057.8,2.20527]
[1625232479931,45.2317,2057.9,2057.4,2.20527]
[1625232480532,1.0,2057.9,2057.4,2.20527]
[1625232480733,1.0,2057.9,2057.4,4.41054]
[1625232480833,3.17787,2058.2,2057.4,4.41054]
[1625232480935,4.17787,2058.2,2057.4,4.41054]
[1625232481033,3.20527,2058.2,2057.4,4.41054]
[1625232482087,4.16707,2058.2,2057.4,4.41054]
[1625232482790,4.16707,2058.2,2057.8,2.20527]
[1625232484771,2.20527,2057.9,2057.8,2.20527]
[1625232485318,4.16707,2058.2,2057.8,2.20527]
[1625232485567,1.9618,2058.2,2057.8,2.20527]
[1625232485968,1.0,2058.1,2057.8,2.20527]
[1625232486821,2.20527,2057.9,2057.8,2.20527]
[1625232487121,46.9234,2058.7,2057.8,2.20527]
[1625232487220,1.0,2058.3,2057.8,2.20527]
[1625232488122,1.9637,2058.3,2057.8,2.20527]
[1625232488773,1.9637,2058.3,2058.1,2.20527]
[1625232489476,1.0,2058.3,2058.1,2.20527]
[1625232490882,4.41054,2058.2,2058.1,2.20527]
[1625232490978,5.41054,2058.2,2058.1,2.20527]
[1625232492733,1.0,2058.2,2058.1,2.20527]
[1625232494398,4.1155,2058.2,2057.8,2.20527]
[1625232494797,4.41054,2057.9,2057.4,2.20527]
[1625232494949,1.0,2057.8,2057.4,2.20527]
[1625232495097,1.9803,2057.8,2057.4,2.20527]
[1625232495248,1.9803,2057.8,2056.3,17.78931365]
[1625232495553,1.9803,2057.8,2056.3,15.808]
[1625232496053,1.9803,2057.8,2056.3,17.79119327]
[1625232496555,1.9803,2057.8,2056.3,15.808]
[1625232496816,2.20527,2057.2,2057.1,2.20527]
[1625232496907,6.07247,2057.2,2057.1,2.20527]
[1625232499022,6.07247,2057.2,2057.1,1.96127]
[1625232499179,6.07247,2057.2,2056.3,15.808]
[1625232499472,6.07247,2057.2,2055.9,1.98717094]
[1625232499574,6.07247,2057.2,2056.0,1.98791033]
[1625232500174,6.07247,2057.2,2055.9,1.98735239]
[1625232500726,6.07247,2057.2,2055.8,1.98798645]
[1625232500825,2.20527,2056.3,2056.1,2.20527]
[1625232500925,6.23787,2056.3,2056.1,2.20527]
[1625232502928,2.20527,2056.2,2055.9,2.20527]
[1625232503028,1.0,2056.1,2055.9,2.20527]
[1625232503883,1.0,2056.1,2055.2,1.99395502]
[1625232503981,1.0,2056.1,2055.2,0.53295502]
[1625232504079,1.0,2056.1,2054.9,2.69401433]
[1625232504330,1.0,2056.1,2054.9,1.73001433]
[1625232504482,43.1084,2055.1,2054.9,1.433e-05]
[1625232504580,1.0,2055.0,2054.7,3.11872579]
[1625232504931,1.0,2055.0,2054.5,2.20527]
[1625232504932,4.41054,2054.8,2054.5,2.20527]
[1625232505032,1.0,2054.7,2054.5,2.20527]
[1625232505137,4.41054,2054.8,2054.5,2.20527]
[1625232505233,3.25901794,2054.8,2054.5,2.20527]
[1625232505883,4.25901794,2054.8,2054.5,2.20527]
[1625232507440,15.7494,2056.1,2054.5,2.20527]
[1625232507538,16.7494,2056.1,2054.5,5.15477]
[1625232507635,15.7685,2056.1,2054.5,5.15477]
[1625232508337,20.7685,2056.1,2054.5,5.15477]
[1625232508439,15.7685,2056.1,2054.5,5.15477]
[1625232508889,2.20527,2054.9,2054.8,2.20527]
[1625232509290,3.20527,2054.9,2054.8,2.20527]
[1625232509742,2.20527,2054.9,2054.8,2.20527]
[1625232510000,3.20527,2054.9,2054.8,2.20527]
[1625232510395,2.20527,2054.9,2054.8,2.20527]
[1625232510843,3.20527,2054.9,2054.8,2.20527]
[1625232510944,5.41054,2054.9,2054.8,2.20527]
[1625232512405,3.20527,2054.9,2054.8,2.20527]
[1625232513257,7e-05,2054.9,2054.8,2.20527]
[1625232513360,2.20527,2055.2,2054.8,2.20527]
[1625232513462,1.0,2056.0,2054.8,5.13767]
[1625232513559,14.7685,2056.1,2054.8,5.13767]
[1625232514062,14.7685,2056.1,2055.1,52.0303]
[1625232514616,1.0,2057.1,2055.1,52.0303]
[1625232514869,15.7752,2057.1,2055.1,52.0303]
[1625232515018,2.20527,2055.9,2055.7,2.20527]
[1625232515118,2.20527,2055.9,2055.7,5.13467]
[1625232516168,15.7752,2057.1,2055.7,5.13467]
[1625232516772,14.7752,2057.1,2055.7,5.13467]
[1625232516972,2.20527,2056.6,2056.4,2.20527]
[1625232517073,2.20527,2056.6,2056.4,5.88907]
[1625232518324,2.20527,2056.6,2056.4,3.6838]
[1625232518923,3.16397,2056.6,2056.4,3.6838]
[1625232519024,3.16397,2056.6,2055.9,2.20527]
[1625232519425,49.938,2056.2,2055.9,2.20527]
[1625232520978,2.20527,2055.8,2055.5,2.20527]
[1625232521680,1.0,2056.5,2055.5,2.20527]
[1625232521831,4.759,2057.2,2055.5,4.84957]
[1625232521930,1.0,2057.1,2055.5,4.84957]
[1625232522229,1.0,2057.1,2056.1,51.4666]
[1625232522331,4.759,2057.2,2056.1,54.5643]
[1625232523084,2.20527,2056.7,2056.6,2.20527]
[1625232525344,2.20527,2056.7,2056.4,2.20527]
[1625232529071,2.20527,2056.7,2056.6,2.20527]
[1625232529172,2.20527,2056.7,2056.6,4.61717]
[1625232530929,2.20527,2056.7,2056.6,2.20527]
[1625232531034,2.20527,2056.7,2056.6,1.32827]
[1625232531132,2.20527,2056.7,2056.1,2.20527]
[1625232531233,4.77987,2056.7,2056.1,2.20527]
[1625232531331,4.77987,2056.7,2056.1,0.74427]
[1625232531531,4.77987,2056.7,2055.9,2.20527]
[1625232531629,4.77987,2056.7,2055.9,0.39627]
[1625232533083,2.20527,2056.0,2055.9,0.39627]
[1625232538146,2.20527,2056.1,2055.9,0.39627]
[1625232539148,2.20527,2056.1,2055.9,2.60154]
[1625232539248,0.56164,2056.2,2055.9,5.01434]
[1625232539352,1.0,2056.9,2055.9,5.01434]
[1625232539450,4.759,2057.2,2055.9,5.01434]
[1625232539903,4.759,2057.2,2056.2,59.1064]
[1625232540405,5.7393,2057.8,2056.2,59.1064]
[1625232540513,6.7393,2057.8,2056.2,59.1064]
[1625232540604,5.7393,2057.8,2056.2,59.1064]
[1625232541106,5.7393,2057.8,2057.2,2.20527]
[1625232541205,2.20527,2057.3,2057.0,2.20527]
[1625232543132,2.20527,2057.2,2057.0,2.20527]
[1625232543228,3.16327,2057.2,2057.0,2.20527]
[1625232547237,2.20527,2057.2,2057.0,2.20527]
[1625232547536,5.7393,2057.8,2057.0,2.20527]
[1625232547688,5.7393,2057.8,2057.0,5.85957]
[1625232548289,4.759,2057.8,2057.0,5.85957]
[1625232548391,15.7447,2058.1,2057.0,5.85957]
[1625232549291,15.7447,2058.1,2058.0,2.20527]
[1625232549541,2.20527,2058.2,2058.0,2.20527]
[1625232551243,4.41054,2058.2,2058.0,2.20527]
[1625232551493,0.9745,2058.5,2058.0,2.20527]
[1625232551593,0.9588,2059.1,2058.0,2.20527]
[1625232551694,0.9588,2059.1,2058.0,5.96777]
[1625232552195,0.9588,2059.1,2058.4,57.1657]
[1625232552798,0.9588,2059.1,2058.0,5.96777]
[1625232553298,0.9588,2059.1,2059.0,4.41054]
[1625232558761,0.9588,2059.1,2057.4,1.0]
[1625232558860,3.506,2059.1,2057.2,2.8227062]
[1625232558963,3.506,2059.1,2057.1,2.82570806]
[1625232559312,3.506,2059.1,2058.8,2.20527]
[1625232560131,51.6302,2058.9,2058.8,2.20527]
[1625232560733,51.6302,2058.9,2058.6,2.20527]
[1625232561234,51.6302,2058.9,2057.3,72.695]
[1625232561336,4.41054,2058.7,2058.2,2.20527]
[1625232563038,4.41054,2058.7,2058.2,1.62457]
[1625232563138,4.41054,2058.7,2058.0,2.20527]
[1625232563239,5.0,2058.6,2058.0,2.20527]
[1625232563342,4.41054,2058.1,2058.0,2.20527]
[1625232563440,7.77474,2058.1,2057.3,14.7464]
[1625232563742,7.77474,2058.1,2056.5,2.83433794]
[1625232563892,51.9445,2057.8,2056.5,2.83433794]
[1625232564392,51.9445,2057.8,2056.3,2.83572479]
[1625232564743,51.9445,2057.8,2056.2,2.83615308]
[1625232564896,5.0,2057.7,2056.2,2.83615308]
[1625232564996,13.0,2057.7,2056.1,2.83746847]
[1625232565344,2.20527,2056.4,2056.3,2.20527]
[1625232565444,59.80787,2056.4,2056.3,2.20527]
[1625232566100,2.4454,2056.4,2056.3,2.20527]
[1625232567201,0.9583,2056.7,2056.3,2.20527]
[1625232567302,2.20527,2056.4,2056.3,2.20527]
[1625232567404,3.16357,2056.7,2056.3,2.20527]
[1625232569106,52.8109,2056.5,2056.3,2.20527]
[1625232569205,55.7703,2056.5,2056.3,2.20527]
[1625232569353,2.20527,2056.4,2056.3,2.20527]
[1625232570463,2.20527,2056.4,2055.5,2.84534695]
[1625232570959,2.20527,2056.4,2055.5,0.88234695]
[1625232571161,2.20527,2056.4,2055.5,4.695e-05]
[1625232571262,2.20527,2056.4,2055.2,2.84766218]
[1625232571361,2.20527,2055.9,2055.8,2.20527]
[1625232571465,2.20527,2055.9,2055.8,5.76307]
[1625232571808,2.20527,2055.9,2055.8,53.96377]
[1625232572211,1.9255,2056.7,2055.8,53.96377]
[1625232572313,0.9583,2056.7,2055.8,53.96377]
[1625232573328,0.9583,2056.7,2056.2,2.20527]
[1625232573329,2.20527,2056.3,2056.2,2.20527]
[1625232573981,0.9583,2056.7,2056.2,2.20527]
[1625232574081,5.7216,2057.9,2056.2,2.20527]
[1625232574181,4.759,2057.9,2056.2,2.20527]
[1625232575241,4.759,2057.9,2056.7,45.2777]
[1625232575343,2.20527,2056.8,2056.7,45.2777]
[1625232576049,2.20527,2056.8,2056.2,2.20527]
[1625232577300,2.20527,2056.8,2056.7,55.2749]
[1625232578207,1.0,2057.6,2056.7,55.2749]
[1625232578307,5.7328,2057.9,2056.7,55.2749]
[1625232578408,4.759,2057.9,2056.7,55.2749]
[1625232579408,2.20527,2057.1,2056.9,2.20527]
[1625232580912,2.20527,2057.3,2056.9,2.20527]
[1625232582063,2.20527,2057.7,2056.9,2.20527]
[1625232582175,3.18247,2057.7,2056.9,2.20527]
[1625232583429,2.20527,2057.4,2056.9,2.20527]
[1625232585383,2.20527,2057.4,2057.3,2.20527]
[1625232586740,2.20527,2057.4,2057.3,47.07477]
[1625232591404,2.20527,2057.4,2057.3,2.20527]
[1625232591802,2.20527,2057.4,2056.9,2.20527]
[1625232591903,4.92127,2057.4,2056.9,2.20527]
[1625232593458,4.92127,2057.4,2057.2,2.20527]
[1625232593567,4.92127,2057.4,2057.3,56.2371]
[1625232594860,4.92127,2057.4,2057.2,2.20527]
[1625232596665,4.92127,2057.4,2056.3,3.69753807]
[1625232596868,4.92127,2057.4,2055.8,51.90450708]
[1625232597369,4.92127,2057.4,2055.9,3.70359333]
[1625232597467,2.20527,2057.0,2056.4,2.20527]
[1625232597818,2.20527,2057.0,2056.5,51.1617]
[1625232599570,2.20527,2057.0,2056.9,2.20527]
[1625232599920,2.20527,2057.4,2057.3,45.1011]
[1625232600923,2.20527,2057.4,2057.2,2.6242]
[1625232601075,2.20527,2057.4,2056.9,2.20527]
[1625232601474,4.41054,2057.4,2056.9,2.20527]
[1625232602075,4.41054,2057.4,2057.3,60.2216]
[1625232602442,4.41054,2057.4,2057.0,3.0687]
[1625232603507,4.41054,2057.4,2057.3,48.72167]
[1625232604256,1.53774,2057.4,2057.3,48.72167]
[1625232604405,1.0,2058.3,2057.3,48.72167]
[1625232604504,15.9962,2058.4,2057.3,48.72167]
[1625232605413,16.977,2058.4,2057.3,48.72167]
[1625232605512,2.20527,2058.3,2058.1,2.20527]
[1625232605613,2.20527,2058.3,2058.1,5.12877]
[1625232606162,2.20527,2058.3,2058.2,51.1919]
[1625232606414,2.20527,2058.3,2058.1,5.12877]
[1625232607165,2.20527,2058.3,2058.2,52.8275]
[1625232608321,2.20527,2058.3,2058.1,5.12877]
[1625232608871,2.20527,2058.3,2058.2,60.0808]
[1625232611529,2.20527,2058.3,2058.2,62.28607]
[1625232611884,0.9588,2059.1,2058.2,62.28607]
[1625232613594,2.20527,2058.4,2058.2,62.28607]
[1625232614347,2.20527,2058.4,2058.2,2.20527]
[1625232615396,6.60017,2058.4,2058.2,2.20527]
[1625232615897,6.60017,2058.4,2058.2,1.60277]
[1625232615998,46.559,2058.3,2058.2,1.60277]
[1625232616298,46.559,2058.3,2058.2,0.40207]
[1625232616399,46.559,2058.3,2058.1,2.20527]
[1625232616500,46.559,2058.3,2056.8,3.70666285]
[1625232616803,46.559,2058.3,2056.6,3.70835231]
[1625232616902,47.559,2058.3,2056.6,3.70835231]
[1625232617503,1.0,2058.3,2056.6,3.70835231]
[1625232617604,2.20527,2057.3,2057.1,2.20527]
[1625232617703,2.20527,2057.3,2057.1,4.61647]
[1625232618319,1.9808,2058.4,2057.1,4.61647]
[1625232618419,0.9808,2058.4,2057.1,4.61647]
[1625232619423,0.9808,2058.4,2057.1,6.03928508]
[1625232619574,2.20527,2057.5,2057.4,2.20527]
[1625232620622,2.20527,2057.5,2057.1,6.03928508]
[1625232621223,5.83217,2057.5,2057.1,3.62808508]
[1625232621324,5.83217,2057.5,2057.1,1.42281508]
[1625232621424,5.83217,2057.5,2056.9,1.42242505]
[1625232621675,5.83217,2057.5,2057.0,2.20527]
[1625232622078,5.83217,2057.5,2057.0,3.6270685]
[1625232622275,3.6269,2057.5,2057.0,3.6270685]
[1625232623028,0.9683,2057.9,2057.0,3.6270685]
[1625232623128,0.9808,2058.4,2057.0,3.6270685]
[1625232623632,2.20527,2057.4,2057.3,2.20527]
[1625232624080,0.9726,2057.9,2057.3,2.20527]
[1625232624230,0.9808,2058.4,2057.3,2.20527]
[1625232624331,0.9808,2058.4,2057.3,5.30987]
[1625232624932,0.9808,2058.4,2057.3,3.1046]
[1625232625634,4.41054,2057.4,2057.3,3.1046]
[1625232625737,4.41054,2057.4,2057.1,1.42250602]
[1625232627251,4.41054,2057.4,2057.0,2.20527]
[1625232627454,1.0,2058.3,2057.0,2.20527]
[1625232627553,5.7398,2058.4,2057.0,5.54257]
[1625232627652,2.20527,2057.6,2057.0,5.54257]
[1625232627754,2.20527,2057.6,2057.1,1.42494173]
[1625232628102,2.20527,2057.6,2057.2,1.42520944]
[1625232629606,2.20527,2057.6,2057.3,2.20527]
[1625232631662,2.20527,2057.4,2057.3,2.20527]
[1625232632913,2.20527,2057.4,2057.1,1.42551246]
[1625232633477,51.04107,2057.4,2057.1,1.42551246]
[1625232633626,51.04107,2057.4,2056.9,1.42694567]
[1625232633726,2.20527,2057.2,2056.9,1.42694567]
[1625232633825,5.33227,2057.2,2056.9,1.42694567]
[1625232633930,5.33227,2057.2,2056.6,1.42803104]
[1625232634330,5.33227,2057.2,2056.5,1.42867382]
[1625232634890,2.20527,2057.2,2056.6,1.42822521]
[1625232635689,2.20527,2056.7,2056.6,1.42822521]
[1625232635939,2.20527,2056.7,2056.5,1.42780817]
[1625232636690,2.20527,2056.7,2056.6,1.42706543]
[1625232638140,2.20527,2056.7,2056.4,2.20527]
[1625232638141,2.20527,2056.7,2056.5,1.42727119]
[1625232638644,2.20527,2056.7,2056.3,1.42842538]
[1625232638993,2.20527,2056.7,2056.3,0.73412538]
[1625232639094,2.20527,2056.7,2056.1,1.42929092]
[1625232639745,4.41054,2056.2,2055.9,2.20527]
[1625232640957,4.41054,2056.2,2055.7,49.7433]
[1625232641357,4.41054,2056.2,2055.5,3.71555316]
[1625232641669,4.41054,2056.2,2055.0,16.0077]
[1625232641670,4.41054,2056.2,2055.4,3.71537768]
[1625232641814,4.078,2056.5,2055.4,3.71537768]
[1625232641815,4.41054,2055.6,2055.4,3.71537768]
[1625232641914,7.65634,2055.6,2055.4,3.71537768]
[1625232642365,7.65634,2055.6,2055.0,3.71593874]
[1625232642765,7.65634,2055.6,2055.1,3.71611556]
[1625232643073,7.65634,2055.6,2055.0,3.71439474]
[1625232643723,4.41054,2055.1,2054.8,5.92034017]
[1625232644123,4.41054,2055.1,2054.9,45.7145]
[1625232644373,4.41054,2055.1,2054.8,5.92034017]
[1625232644477,4.41054,2055.1,2054.8,2.20527]
[1625232644627,2.20527,2055.1,2054.8,2.20527]
[1625232644825,2.20527,2055.1,2055.0,50.5533]
[1625232644924,2.20527,2055.1,2055.0,54.2118]
[1625232645623,2.20527,2055.1,2055.0,3.6585]
[1625232646273,2.20527,2055.1,2054.8,2.20527]
[1625232647428,2.20527,2055.1,2054.9,41.2445]
[1625232647526,2.20527,2055.1,2054.8,2.20527]
[1625232648728,2.20527,2055.1,2054.9,59.5019]
[1625232648827,2.20527,2055.1,2054.9,62.8132]
[1625232649878,2.20527,2055.1,2054.9,3.3113]
[1625232649979,2.20527,2055.1,2054.8,2.20527]
[1625232650983,2.20527,2055.1,2054.9,49.3268]
[1625232651084,2.20527,2055.1,2054.8,2.20527]
[1625232651740,2.20527,2055.0,2054.8,2.20527]
[1625232657397,2.20527,2055.0,2054.8,49.08397]
[1625232659915,2.20527,2055.0,2054.8,2.20527]
[1625232660519,5.85157,2055.0,2054.8,2.20527]
[1625232660716,5.85157,2055.0,2054.6,2.20527]
[1625232660876,5.85157,2055.0,2054.6,1.60527]
[1625232660975,5.85157,2055.0,2054.1,2.84190073]
[1625232661127,5.85157,2055.0,2053.8,3.70354529]
[1625232661576,5.85157,2055.0,2053.3,4.55873538]
[1625232661725,6.85157,2055.0,2053.3,4.55873538]
[1625232661829,2.20527,2054.2,2054.1,2.20527]
[1625232662276,1.05385249,2054.2,2054.1,2.20527]
[1625232663548,1.05385249,2054.2,2053.2,15.3889]
[1625232663648,1.05385249,2054.2,2053.1,4.55861131]
[1625232663850,2.20527,2053.2,2052.9,2.20527]
[1625232663949,8.5894,2054.6,2052.9,2.20527]
[1625232664048,3.5894,2054.6,2052.9,2.20527]
[1625232664198,59.1788,2054.3,2052.9,2.20527]
[1625232664299,3.5894,2054.6,2052.9,2.20527]
[1625232664399,1.0,2054.6,2052.9,2.20527]
[1625232664749,50.8673,2054.5,2052.9,2.20527]
[1625232664849,54.6104,2054.5,2052.9,2.20527]
[1625232664965,59.6104,2054.5,2052.9,2.20527]
[1625232665853,2.20527,2053.0,2052.9,2.20527]
[1625232666256,2.20527,2053.2,2052.9,2.20527]
[1625232667867,2.20527,2053.2,2053.1,2.20527]
[1625232668823,1.979,2054.2,2053.1,5.25647]
[1625232668924,1.0,2055.6,2053.1,5.25647]
[1625232669023,0.9622,2055.9,2053.1,5.25647]
[1625232669024,1.0,2055.4,2053.1,5.25647]
[1625232669429,1.0,2055.4,2053.6,60.4421]
[1625232669527,15.3372,2055.6,2053.6,64.0947]
[1625232669627,23.3372,2055.6,2053.6,3.6526]
[1625232669979,2.20527,2054.5,2054.4,2.20527]
[1625232671428,2.20527,2054.5,2053.0,16.446]
[1625232671578,2.20527,2054.5,2053.0,15.446]
[1625232671680,5.65247,2054.5,2053.0,15.446]
[1625232671878,2.20527,2053.5,2053.4,2.20527]
[1625232672331,0.9866,2054.0,2053.4,2.20527]
[1625232672481,14.8667,2054.8,2053.4,2.20527]
[1625232673632,19.8667,2054.8,2053.4,2.20527]
[1625232673934,2.20527,2053.8,2053.7,2.20527]
[1625232674035,3.16597,2053.8,2052.5,45.3523]
[1625232674135,2.20527,2053.8,2052.5,45.3523]
[1625232674738,2.20527,2053.8,2052.3,14.74]
[1625232675890,2.20527,2053.8,2053.7,2.20527]
[1625232676691,2.20527,2053.8,2052.3,15.74]
[1625232676840,5.01997,2053.8,2052.3,14.74]
[1625232677944,2.20527,2053.1,2052.8,2.20527]
[1625232678864,4.74137,2053.1,2052.8,2.20527]
[1625232679927,2.20527,2052.9,2052.8,2.20527]
[1625232680880,2.20527,2053.1,2052.8,2.20527]
[1625232680981,0.9658,2053.4,2052.8,5.59387]
[1625232681883,2.20527,2052.9,2052.8,5.59387]
[1625232682386,1.05325063,2052.9,2052.8,5.59387]
[1625232682889,2.02005063,2052.9,2052.8,5.59387]
[1625232683341,2.02005063,2052.9,2052.8,2.20527]
[1625232684242,2.02005063,2052.9,2052.8,1.50377]
[1625232685244,4.48455063,2052.9,2052.8,1.50377]
[1625232685643,4.48455063,2052.9,2052.6,2.20527]
[1625232685947,2.20527,2052.7,2052.6,2.20527]
[1625232690406,0.9658,2053.4,2052.6,2.20527]
[1625232691508,0.9658,2053.4,2052.6,44.22247]
[1625232692007,3.17107,2053.4,2053.3,2.20527]
[1625232692306,2.20527,2053.4,2053.3,2.20527]
[1625232693061,1.0,2054.4,2053.3,2.20527]
[1625232693178,15.784,2056.4,2053.3,2.20527]
[1625232693275,15.1264,2055.6,2053.3,2.20527]
[1625232694028,2.20527,2054.2,2054.1,2.20527]
[1625232694990,2.20527,2054.2,2053.2,15.4439]
[1625232695088,2.20527,2054.2,2052.7,1.0]
[1625232695089,2.20527,2054.2,1993.4,97.31752493]
[1625232695192,1.0,2054.1,2050.8,8.086]
[1625232695292,1.9644,2054.1,2051.3,1.97369521]
[1625232695394,1.9644,2054.1,2051.8,14.7183]
[1625232695639,16.6891,2054.1,2051.8,14.7183]
[1625232696043,2.20527,2053.2,2053.1,2.20527]
[1625232696140,6.20377,2053.2,2053.1,2.20527]
[1625232696591,6.20377,2053.2,2051.8,14.7183]
[1625232697293,5.23157,2053.2,2051.8,14.7183]
[1625232698042,2.20527,2052.7,2052.6,2.20527]
[1625232699395,4.53127,2052.7,2052.6,2.20527]
[1625232699996,6.73654,2052.7,2052.6,2.20527]
[1625232700702,6.73654,2052.7,2051.8,14.7183]
[1625232700952,6.73654,2052.7,2050.6,1.0]
[1625232701054,7.73654,2052.7,2050.5,9.759]
[1625232701301,7.73654,2052.7,2050.6,0.17326676]
[1625232701403,5.41054,2052.7,2050.6,0.17326676]
[1625232701653,4.41054,2052.7,2050.6,22.97794376]
[1625232701753,4.41054,2052.7,2050.6,25.54474376]
[1625232701853,4.41054,2052.7,2051.8,51.5355]
[1625232702002,4.41054,2052.7,2051.8,54.7248]
[1625232702105,2.20527,2052.7,2052.4,2.20527]
[1625232703254,2.20527,2052.7,2052.4,5.72937]
[1625232703609,2.20527,2052.7,2052.4,3.5241]
[1625232704059,2.20527,2052.5,2052.4,3.5241]
[1625232704561,2.20527,2052.5,2052.2,4.41054]
[1625232706562,14.9254,2053.3,2052.2,4.41054]
[1625232706662,14.9254,2053.3,2052.2,6.72554]
[1625232707614,1.0,2054.5,2052.2,6.72554]
[1625232707916,15.8805,2054.5,2052.2,6.72554]
[1625232708170,2.20527,2053.2,2053.1,2.20527]
[1625232708370,5.37767,2053.2,2053.1,2.20527]
[1625232708475,5.37767,2053.2,2051.5,1.0]
[1625232708577,5.37767,2053.2,2051.2,15.3863]
[1625232710089,2.20527,2052.1,2051.8,2.20527]
[1625232714113,2.20527,2052.0,2051.8,2.20527]
[1625232715168,0.9653,2052.8,2051.8,2.20527]
[1625232716168,4.41054,2051.9,2051.8,2.20527]
[1625232716769,3.25811081,2051.9,2051.8,2.20527]
[1625232716919,0.9653,2052.8,2051.8,2.20527]
[1625232718127,2.20527,2052.2,2052.1,2.20527]
[1625232718334,2.20527,2052.2,2051.8,2.20527]
[1625232718430,2.20527,2052.2,2050.2,2.82803803]
[1625232718630,2.20527,2052.2,2050.4,0.17413821]
[1625232718732,43.8775,2052.1,2050.4,0.17413821]
[1625232718830,46.2706,2052.1,2050.3,0.17415389]
[1625232719235,46.2706,2052.1,2050.1,0.17419198]
[1625232719738,2.3931,2052.1,2050.1,0.17419198]
[1625232720139,2.20527,2051.5,2051.3,2.20527]
[1625232724951,15.5391,2052.6,2051.3,2.20527]
[1625232725060,0.9701,2053.5,2051.3,5.74057]
[1625232725153,1.0,2053.9,2051.3,5.74057]
[1625232725405,15.3548,2053.8,2051.3,5.74057]
[1625232725504,16.3548,2053.8,2051.3,5.74057]
[1625232725706,16.3548,2053.8,2052.0,41.7846]
[1625232725806,15.3548,2053.8,2052.0,45.3268]
[1625232726215,2.20527,2053.0,2052.9,2.20527]
[1625232727408,15.3548,2053.8,2052.9,2.20527]
[1625232728209,4.41054,2053.0,2052.9,2.20527]
[1625232728411,15.3548,2053.8,2052.9,2.20527]
[1625232728860,15.3548,2053.8,2052.7,2.20527]
[1625232730217,4.41054,2052.8,2052.7,2.20527]
[1625232730319,8.34514,2052.8,2052.7,2.20527]
[1625232731828,8.34514,2052.8,2051.1,1.0]
[1625232731928,13.34514,2052.8,2050.8,1.98923996]
[1625232732277,2.20527,2051.6,2051.5,2.20527]
[1625232733083,1.0526503,2051.6,2051.5,2.20527]
[1625232733434,1.0,2052.6,2051.5,2.20527]
[1625232733582,14.6126,2052.7,2051.5,2.20527]
[1625232734236,2.20527,2052.0,2051.8,2.20527]
[1625232734383,3.17567,2052.0,2051.8,2.20527]
[1625232736251,2.20527,2051.9,2051.8,2.20527]
[1625232738060,14.6126,2052.7,2051.8,2.20527]
[1625232738159,14.6126,2052.7,2051.8,4.90107]
[1625232738265,2.20527,2052.3,2051.8,7.10634]
[1625232740231,2.20527,2052.3,2052.1,2.20527]
[1625232740684,0.9667,2052.8,2052.1,2.20527]
[1625232741183,16.1357,2053.5,2052.1,2.20527]
[1625232742246,2.20527,2052.8,2052.7,2.20527]
[1625232744259,0.9877,2052.9,2052.7,2.20527]
[1625232744408,2.20527,2053.3,2052.7,4.55177]
[1625232745665,1.0,2054.2,2052.7,4.55177]
[1625232745765,14.7761,2054.3,2052.7,4.55177]
[1625232745865,14.7761,2054.3,2052.8,58.5687]
[1625232746364,2.20527,2053.4,2053.2,2.20527]
[1625232746477,2.20527,2053.4,2052.7,4.55177]
[1625232748170,1.0,2054.2,2052.7,4.55177]
[1625232748272,2.20527,2053.8,2053.7,2.20527]
[1625232748372,2.20527,2053.8,2053.7,5.96697]
[1625232749733,2.20527,2053.8,2053.7,3.7617]
[1625232749834,2.20527,2053.8,2053.5,2.20527]
[1625232750335,2.20527,2053.6,2053.5,2.20527]
[1625232750639,2.20527,2053.6,2052.5,15.3669]
[1625232750835,2.20527,2053.6,2052.5,18.22586495]
[1625232752288,2.20527,2053.2,2053.1,2.20527]
[1625232754359,15.6895,2054.2,2053.1,2.20527]
[1625232756130,15.6895,2054.2,2052.7,2.85761108]
[1625232756233,18.3856,2054.2,2052.7,2.85761108]
[1625232756342,18.3856,2054.2,2052.8,2.20527]
[1625232756343,2.20527,2053.0,2052.8,2.20527]
[1625232756432,5.55857,2053.0,2052.8,2.20527]
[1625232756883,5.55857,2053.0,2052.4,2.85978621]
[1625232757133,5.55857,2053.0,2052.3,2.86025647]
[1625232757582,5.55857,2053.0,2052.4,2.85944897]
[1625232757792,5.55857,2053.0,2052.3,2.85860228]
[1625232758293,5.55857,2053.0,2052.7,2.20527]
[1625232760343,2.20527,2052.8,2052.7,2.20527]
[1625232760595,3.17177,2052.8,2052.7,2.20527]
[1625232760997,3.17177,2052.8,2052.5,2.20527]
[1625232760998,3.17177,2052.8,2052.2,2.86210054]
[1625232761647,3.17177,2052.8,2051.6,5.72420109]
[1625232762203,3.17177,2052.8,2052.0,2.86270952]
[1625232762315,4.41054,2052.1,2052.0,2.86270952]
[1625232762417,6.92044,2052.1,2052.0,2.86270952]
[1625232762564,7.89934,2052.1,2051.9,2.86308666]
[1625232762863,7.89934,2052.1,2051.8,5.06965676]
[1625232763363,6.92044,2052.1,2051.8,5.06965676]